fUST/lending_fUST_20250311
["ID","MTS","AMOUNT","RATE_DAILY","PERIOD"]
[355847016,1741634764498,-500.0,0.00052054,120]
[355847018,1741634764569,-500.0,0.00052054,120]
[355847020,1741634764637,-500.0,0.00052054,120]
[355847022,1741634764706,-536.80011343,0.00052054,120]
[355847024,1741634764778,-500.0,0.00052054,120]
[355847025,1741634764847,-825.46,0.00052054,120]
[355847028,1741634764917,-551.39686317,0.00052054,120]
[355847030,1741634764984,-535.4769315,0.00052054,120]
[355847032,1741634765051,-558.21536983,0.00052054,120]
[355847034,1741634765119,-1427.28,0.00052054,120]
[355847036,1741634765185,-500.0,0.00052054,120]
[355847038,1741634765248,-500.0,0.00052054,120]
[355847040,1741634765312,-1000.0,0.00052054,120]
[355847042,1741634765376,-500.0,0.00052054,120]
[355847044,1741634765445,-500.0,0.00052054,120]
[355847046,1741634765511,-500.0,0.00052054,120]
[355847048,1741634765576,-500.0,0.00052054,120]
[355847050,1741634765639,-593.95,0.00052054,120]
[355847052,1741634765702,-1223.04,0.00052054,120]
[355847054,1741634765769,-500.0,0.00052054,120]
[355847056,1741634765839,-500.0,0.00052054,120]
[355847057,1741634765901,-500.0,0.00052054,120]
[355847058,1741634765963,-1977.19,0.00052054,120]
[355847059,1741634766027,-1508.22,0.00052054,120]
[355847060,1741634766089,-1095.78,0.00052054,120]
[355847063,1741634766156,-500.0,0.00052054,120]
[355847065,1741634766226,-1280.77,0.00052054,120]
[355847067,1741634766292,-500.0,0.00052054,120]
[355847069,1741634766356,-648.8,0.00052054,120]
[355847070,1741634766421,-553.58037394,0.00052054,120]
[355847073,1741634766493,-500.0,0.00052054,120]
[355847075,1741634766561,-500.0,0.00052054,120]
[355847077,1741634766626,-500.0,0.00052054,120]
[355847079,1741634766700,-500.0,0.00052054,120]
[355847081,1741634766767,-500.0,0.00052054,120]
[355847083,1741634766835,-500.0,0.00052054,120]
[355847085,1741634766901,-1723.62,0.00052054,120]
[355847087,1741634766965,-500.0,0.00052054,120]
[355847089,1741634767032,-500.0,0.00052054,120]
[355847091,1741634767097,-500.0,0.00052054,120]
[355847093,1741634767165,-625.71,0.00052054,120]
[355847095,1741634767235,-500.0,0.00052054,120]
[355847097,1741634767304,-571.03110036,0.00052054,120]
[355847098,1741634767371,-500.0,0.00052054,120]
[355847101,1741634767444,-500.0,0.00052054,120]
[355847103,1741634767511,-500.0,0.00052054,120]
[355847105,1741634767576,-3946.5,0.00052054,120]
[355847107,1741634767645,-538.35880945,0.00052054,120]
[355847109,1741634767710,-500.0,0.00052054,120]
[355847111,1741634767788,-500.0,0.00052054,120]
[355847113,1741634767857,-500.0,0.00052054,120]
[355847114,1741634767924,-1395.15,0.00052054,120]
[355847116,1741634767993,-500.0,0.00052054,120]
[355847119,1741634768063,-246.72909728,0.00052054,120]
[355847121,1741634768132,-500.0,0.00052054,120]
[355847123,1741634768202,-500.0,0.00052054,120]
[355847124,1741634768272,-500.0,0.00052054,120]
[355847126,1741634768337,-500.0,0.00052054,120]
[355847129,1741634768404,-500.0,0.00052054,120]
[355847131,1741634768467,-500.0,0.00052054,120]
[355847133,1741634768536,-501.86,0.00052054,120]
[355847135,1741634768604,-500.0,0.00052054,120]
[355847137,1741634768672,-618.91,0.00052054,120]
[355847139,1741634768741,-696.15,0.00052054,120]
[355847140,1741634768811,-175.93886179,0.00052054,120]
[355847143,1741634768878,-500.0,0.00052054,120]
[355847145,1741634768943,-797.66,0.00052054,120]
[355847147,1741634769009,-2087.8,0.00052054,120]
[355847149,1741634769075,-500.0,0.00052054,120]
[355847151,1741634769145,-508.0,0.00052054,120]
[355847152,1741634769218,-500.0,0.00052054,120]
[355847155,1741634769290,-500.0,0.00052054,120]
[355847157,1741634769355,-916.87,0.00052054,120]
[355847158,1741634769420,-5780.6,0.00052054,120]
[355847161,1741634769485,-907.16,0.00052054,120]
[355847162,1741634769548,-555.58708174,0.00052054,120]
[355847165,1741634769613,-500.0,0.00052054,120]
[355847166,1741634769676,-964.32,0.00052054,120]
[355847168,1741634769743,-500.0,0.00052054,120]
[355847170,1741634769811,-500.0,0.00052054,120]
[355847173,1741634769884,-530.44324522,0.00052054,120]
[355847175,1741634769958,-2093.35,0.00052054,120]
[355847177,1741634770038,-500.0,0.00052054,120]
[355847179,1741634770111,-500.0,0.00052054,120]
[355847181,1741634770183,-500.0,0.00052054,120]
[355847182,1741634770250,-500.0,0.00052054,120]
[355847185,1741634770320,-943.37,0.00052054,120]
[355847187,1741634770390,-2796.61,0.00052054,120]
[355847189,1741634770463,-500.0,0.00052054,120]
[355847190,1741634770538,-829.49,0.00052054,120]
[355847193,1741634770608,-1140.9,0.00052054,120]
[355847194,1741634770678,-521.10454877,0.00052054,120]
[355847197,1741634770749,-500.0,0.00052054,120]
[355847199,1741634770820,-500.0,0.00052054,120]
[355847201,1741634770887,-500.0,0.00052054,120]
[355847203,1741634770959,-385.24290519,0.00052054,120]
[355847208,1741634771226,-152.02008205,0.00052054,120]
[355847210,1741634771304,-539.47565048,0.00052054,120]
[355847212,1741634771378,-500.0,0.00052054,120]
[355847214,1741634771448,-500.0,0.00052054,120]
[355847216,1741634771518,-500.0,0.00052054,120]
[355847218,1741634771589,-1287.13,0.00052054,120]
[355847220,1741634771658,-580.77,0.00052054,120]
[355847222,1741634771730,-500.0,0.00052054,120]
[355847224,1741634771799,-598.27,0.00052054,120]
[355847226,1741634771863,-517.21,0.00052054,120]
[355847228,1741634771928,-500.0,0.00052054,120]
[355847230,1741634771993,-500.0,0.00052054,120]
[355847232,1741634772060,-500.0,0.00052054,120]
[355847234,1741634772128,-500.0,0.00052054,120]
[355847236,1741634772198,-1667.02,0.00052054,120]
[355847238,1741634772269,-1230.06,0.00052054,120]
[355847240,1741634772338,-500.0,0.00052054,120]
[355847242,1741634772405,-685.63,0.00052054,120]
[355847244,1741634772471,-529.86,0.00052054,120]
[355847245,1741634772543,-1714.18,0.00052054,120]
[355847248,1741634772606,-2510.41,0.00052054,120]
[355847250,1741634772673,-500.0,0.00052054,120]
[355847252,1741634772739,-500.0,0.00052054,120]
[355847254,1741634772806,-520.23,0.00052054,120]
[355847255,1741634772872,-500.0,0.00052054,120]
[355847258,1741634772937,-3040.06,0.00052054,120]
[355847260,1741634773004,-562.28,0.00052054,120]
[355847261,1741634773070,-828.78,0.00052054,120]
[355847263,1741634773133,-3111.15,0.00052054,120]
[355847265,1741634773199,-500.0,0.00052054,120]
[355847266,1741634773257,-1558.42,0.00052054,120]
[355847267,1741634773313,-500.0,0.00052054,120]
[355847268,1741634773370,-542.99435418,0.00052054,120]
[355847269,1741634773426,-2044.08,0.00052054,120]
[355847270,1741634773482,-1349.72,0.00052054,120]
[355847271,1741634773538,-500.0,0.00052054,120]
[355847272,1741634773594,-500.0,0.00052054,120]
[355847275,1741634773651,-505.0,0.00052054,120]
[355847277,1741634773712,-500.0,0.00052054,120]
[355847279,1741634773780,-500.0,0.00052054,120]
[355847281,1741634773842,-500.0,0.00052054,120]
[355847283,1741634773905,-1531.21,0.00052054,120]
[355847285,1741634773973,-500.0,0.00052054,120]
[355847287,1741634774043,-948.59,0.00052054,120]
[355847289,1741634774114,-634.94,0.00052054,120]
[355847290,1741634774181,-500.0,0.00052054,120]
[355847293,1741634774246,-1529.78,0.00052054,120]
[355847294,1741634774310,-500.0,0.00052054,120]
[355847296,1741634774374,-528.02025471,0.00052054,120]
[355847299,1741634774439,-610.48,0.00052054,120]
[355847301,1741634774501,-500.0,0.00052054,120]
[355847302,1741634774564,-4845.92,0.00052054,120]
[355847305,1741634774626,-526.05083208,0.00052054,120]
[355847306,1741634774689,-637.0,0.00052054,120]
[355847309,1741634774751,-500.0,0.00052054,120]
[355847311,1741634774815,-996.35,0.00052054,120]
[355847313,1741634774880,-2013.49,0.00052054,120]
[355847315,1741634774946,-500.0,0.00052054,120]
[355847317,1741634775015,-932.97,0.00052054,120]
[355847319,1741634775081,-4678.54,0.00052054,120]
[355847321,1741634775147,-500.0,0.00052054,120]
[355847323,1741634775214,-5617.34,0.00052054,120]
[355847324,1741634775279,-500.0,0.00052054,120]
[355847327,1741634775342,-500.0,0.00052054,120]
[355847329,1741634775408,-3648.52,0.00052054,120]
[355847330,1741634775473,-571.01457082,0.00052054,120]
[355847332,1741634775548,-760.85,0.00052054,120]
[355847335,1741634775618,-1071.61,0.00052054,120]
[355847337,1741634775679,-566.70574951,0.00052054,120]
[355847339,1741634775745,-537.78069519,0.00052054,120]
[355847340,1741634775811,-500.0,0.00052054,120]
[355847343,1741634775877,-550.68040704,0.00052054,120]
[355847345,1741634775943,-500.0,0.00052054,120]
[355847346,1741634776012,-500.0,0.00052054,120]
[355847349,1741634776080,-500.0,0.00052054,120]
[355847351,1741634776146,-1343.82,0.00052054,120]
[355847353,1741634776217,-1206.47,0.00052054,120]
[355847355,1741634776283,-898.89,0.00052054,120]
[355847357,1741634776346,-533.46085048,0.00052054,120]
[355847359,1741634776410,-555.49522109,0.00052054,120]
[355847360,1741634776482,-3411.55,0.00052054,120]
[355847363,1741634776554,-12509.02,0.00052054,120]
[355847365,1741634776623,-705.81,0.00052054,120]
[355847367,1741634776699,-710.74,0.00052054,120]
[355847369,1741634776757,-500.0,0.00052054,120]
[355847370,1741634776825,-500.0,0.00052054,120]
[355847372,1741634776890,-542.67439386,0.00052054,120]
[355847375,1741634776959,-2771.86,0.00052054,120]
[355847377,1741634777026,-500.0,0.00052054,120]
[355847379,1741634777092,-500.0,0.00052054,120]
[355847381,1741634777156,-5657.78,0.00052054,120]
[355847383,1741634777220,-538.7378077,0.00052054,120]
[355847384,1741634777288,-500.0,0.00052054,120]
[355847387,1741634777350,-796.29,0.00052054,120]
[355847392,1741634777594,-5551.46,0.00052054,120]
[355847394,1741634777644,-500.0,0.00052054,120]
[355847396,1741634777693,-2183.17,0.00052054,120]
[355847398,1741634777744,-1240.41,0.00052054,120]
[355847400,1741634777794,-1508.14,0.00052054,120]
[355847402,1741634777844,-500.0,0.00052054,120]
[355847404,1741634777893,-505.42,0.00052054,120]
[355847406,1741634777943,-544.54089345,0.00052054,120]
[355847408,1741634777994,-500.0,0.00052054,120]
[355847410,1741634778048,-500.0,0.00052054,120]
[355847412,1741634778103,-8620.18,0.00052054,120]
[355847414,1741634778170,-500.0,0.00052054,120]
[355847416,1741634778233,-500.0,0.00052054,120]
[355847417,1741634778302,-500.0,0.00052054,120]
[355847420,1741634778369,-500.0,0.00052054,120]
[355847422,1741634778436,-500.0,0.00052054,120]
[355847424,1741634778499,-1144.04,0.00052054,120]
[355847426,1741634778564,-500.0,0.00052054,120]
[355847428,1741634778626,-500.0,0.00052054,120]
[355847430,1741634778689,-500.0,0.00052054,120]
[355847432,1741634778753,-500.0,0.00052054,120]
[355847434,1741634778818,-242.29212992,0.00052054,120]
[355847436,1741634778886,-533.28,0.00052054,120]
[355847438,1741634778953,-500.0,0.00052054,120]
[355847440,1741634779020,-1231.57,0.00052054,120]
[355847442,1741634779089,-500.0,0.00052054,120]
[355847444,1741634779155,-500.0,0.00052054,120]
[355847446,1741634779221,-500.0,0.00052054,120]
[355847448,1741634779286,-500.0,0.00052054,120]
[355847450,1741634779351,-562.15,0.00052054,120]
[355847452,1741634779416,-500.0,0.00052054,120]
[355847454,1741634779479,-500.0,0.00052054,120]
[355847456,1741634779544,-500.0,0.00052054,120]
[355847458,1741634779607,-3093.79,0.00052054,120]
[355847460,1741634779664,-549.78531075,0.00052054,120]
[355847462,1741634779727,-865.06,0.00052054,120]
[355847464,1741634779790,-1650.67,0.00052054,120]
[355847466,1741634779852,-600.0,0.00052054,120]
[355847467,1741634779914,-655.45842754,0.00052085,91]
[355847470,1741634779981,-2061.78,0.000521,30]
[355847472,1741634780051,-12580.83,0.000521,30]
[355847474,1741634780118,-348.09,0.000521,30]
[355847476,1741634780188,-655.45842754,0.00052185,99]
[355847477,1741634780253,-239.42,0.00052268,30]
[355847478,1741634780316,-20000.0,0.00052278,60]
[355847479,1741634780378,-655.45842754,0.00052285,92]
[355847480,1741634780436,-7998.11,0.000523,30]
[355847482,1741634780500,-347.0,0.00052328,120]
[355847484,1741634780567,-538.52255653,0.00052328,120]
[355847486,1741634780635,-500.0,0.00052328,120]
[355847488,1741634780699,-500.0,0.00052328,120]
[355847489,1741634780765,-500.0,0.00052328,120]
[355847492,1741634780833,-500.0,0.00052328,120]
[355847494,1741634780900,-500.0,0.00052328,120]
[355847496,1741634780964,-500.0,0.00052328,120]
[355847498,1741634781033,-500.0,0.00052328,120]
[355847500,1741634781101,-722.09,0.00052328,120]
[355847502,1741634781179,-500.0,0.00052328,120]
[355847504,1741634781252,-500.0,0.00052328,120]
[355847506,1741634781323,-500.0,0.00052328,120]
[355847508,1741634781394,-500.0,0.00052328,120]
[355847510,1741634781461,-637.17,0.00052328,120]
[355847511,1741634781529,-966.69,0.00052328,120]
[355847514,1741634781594,-500.0,0.00052328,120]
[355847516,1741634781657,-500.0,0.00052328,120]
[355847518,1741634781720,-500.0,0.00052328,120]
[355847520,1741634781791,-500.0,0.00052328,120]
[355847522,1741634781856,-185.06429027,0.00052328,120]
[355847524,1741634781918,-500.0,0.00052328,120]
[355847526,1741634781980,-930.98,0.00052328,120]
[355847528,1741634782046,-500.0,0.00052328,120]
[355847530,1741634782113,-500.0,0.00052328,120]
[355847532,1741634782178,-500.0,0.00052328,120]
[355847534,1741634782245,-941.74,0.00052328,120]
[355847536,1741634782306,-255.11750456,0.00052328,120]
[355847538,1741634782370,-628.95,0.00052328,120]
[355847540,1741634782433,-500.0,0.00052328,120]
[355847542,1741634782498,-500.0,0.00052328,120]
[355847544,1741634782564,-363.95232665,0.00052328,120]
[355847546,1741634782626,-707.99,0.00052328,120]
[355847548,1741634782693,-590.09,0.00052328,120]
[355847550,1741634782757,-500.0,0.00052328,120]
[355847552,1741634782821,-532.52778281,0.00052328,120]
[355847554,1741634782885,-666.63,0.00052328,120]
[355847556,1741634782949,-586.26898953,0.00052328,120]
[355847558,1741634783017,-990.23,0.00052328,120]
[355847560,1741634783083,-1039.72,0.00052328,120]
[355847562,1741634783151,-500.0,0.00052328,120]
[355847564,1741634783218,-821.71,0.00052328,120]
[355847565,1741634783280,-567.24744735,0.00052328,120]
[355847568,1741634783343,-671.85,0.00052328,120]
[355847573,1741634783578,-662.81,0.00052328,120]
[355847575,1741634783644,-500.0,0.00052328,120]
[355847577,1741634783708,-1093.3,0.00052328,120]
[355847579,1741634783772,-500.0,0.00052328,120]
[355847581,1741634783841,-573.03282652,0.00052328,120]
[355847583,1741634783909,-500.0,0.00052328,120]
[355847584,1741634783976,-520.62,0.00052328,120]
[355847587,1741634784045,-723.93,0.00052328,120]
[355847589,1741634784112,-500.0,0.00052328,120]
[355847591,1741634784179,-500.0,0.00052328,120]
[355847593,1741634784250,-500.0,0.00052328,120]
[355847595,1741634784314,-500.0,0.00052328,120]
[355847597,1741634784380,-500.0,0.00052328,120]
[355847599,1741634784454,-500.0,0.00052328,120]
[355847601,1741634784521,-545.41,0.00052328,120]
[355847603,1741634784591,-500.0,0.00052328,120]
[355847605,1741634784661,-563.60144465,0.00052328,120]
[355847607,1741634784728,-500.0,0.00052328,120]
[355847609,1741634784797,-500.0,0.00052328,120]
[355847611,1741634784865,-567.29,0.00052328,120]
[355847613,1741634784933,-1069.2,0.00052328,120]
[355847615,1741634785000,-500.0,0.00052328,120]
[355847617,1741634785073,-569.12,0.00052328,120]
[355847619,1741634785143,-500.0,0.00052328,120]
[355847621,1741634785215,-560.23510959,0.00052328,120]
[355847623,1741634785283,-500.0,0.00052328,120]
[355847625,1741634785348,-500.0,0.00052328,120]
[355847627,1741634785415,-525.57,0.00052328,120]
[355847629,1741634785482,-500.0,0.00052328,120]
[355847631,1741634785549,-500.0,0.00052328,120]
[355847633,1741634785613,-500.0,0.00052328,120]
[355847635,1741634785677,-500.0,0.00052328,120]
[355847637,1741634785744,-500.0,0.00052328,120]
[355847639,1741634785814,-553.01332127,0.00052328,120]
[355847641,1741634785881,-567.26,0.00052328,120]
[355847643,1741634785949,-1000.0,0.00052328,120]
[355847645,1741634786015,-500.0,0.00052328,120]
[355847647,1741634786085,-549.74337692,0.00052328,120]
[355847649,1741634786153,-500.0,0.00052328,120]
[355847651,1741634786222,-2049.14,0.00052328,120]
[355847653,1741634786291,-500.0,0.00052328,120]
[355847655,1741634786357,-500.0,0.00052328,120]
[355847656,1741634786429,-544.10458338,0.00052328,120]
[355847659,1741634786499,-500.0,0.00052328,120]
[355847661,1741634786565,-519.90446528,0.00052328,120]
[355847663,1741634786632,-634.97,0.00052328,120]
[355847665,1741634786701,-500.0,0.00052328,120]
[355847667,1741634786768,-1733.86,0.00052328,120]
[355847669,1741634786837,-884.18,0.00052328,120]
[355847671,1741634786903,-500.0,0.00052328,120]
[355847673,1741634786974,-1852.39,0.00052328,120]
[355847675,1741634787044,-536.38,0.00052328,120]
[355847677,1741634787114,-500.0,0.00052328,120]
[355847679,1741634787182,-2167.04,0.00052328,120]
[355847681,1741634787256,-500.0,0.00052328,120]
[355847683,1741634787326,-366.27596796,0.00052328,120]
[355847685,1741634787392,-1453.83,0.00052328,120]
[355847687,1741634787461,-475.95701218,0.00052328,120]
[355847688,1741634787522,-500.0,0.00052328,120]
[355847689,1741634787582,-500.0,0.00052328,120]
[355847690,1741634787643,-500.0,0.00052328,120]
[355847691,1741634787703,-825.46,0.00052328,120]
[355847692,1741634787759,-1427.28,0.00052328,120]
[355847695,1741634787827,-500.0,0.00052328,120]
[355847697,1741634787894,-500.0,0.00052328,120]
[355847699,1741634787961,-1000.0,0.00052328,120]
[355847700,1741634788031,-500.0,0.00052328,120]
[355847702,1741634788105,-500.0,0.00052328,120]
[355847705,1741634788179,-500.0,0.00052328,120]
[355847707,1741634788253,-500.0,0.00052328,120]
[355847709,1741634788322,-593.95,0.00052328,120]
[355847711,1741634788395,-1223.04,0.00052328,120]
[355847713,1741634788467,-500.0,0.00052328,120]
[355847715,1741634788543,-483.27377662,0.00052328,120]
[355847716,1741634788616,-500.0,0.00052328,120]
[355847719,1741634788687,-1977.19,0.00052328,120]
[355847721,1741634788759,-1508.22,0.00052328,120]
[355847723,1741634788830,-1095.78,0.00052328,120]
[355847725,1741634788902,-500.0,0.00052328,120]
[355847727,1741634788969,-1280.77,0.00052328,120]
[355847729,1741634789036,-553.89,0.00052328,120]
[355847731,1741634789104,-648.8,0.00052328,120]
[355847733,1741634789172,-500.0,0.00052328,120]
[355847735,1741634789241,-500.0,0.00052328,120]
[355847737,1741634789311,-500.0,0.00052328,120]
[355847739,1741634789376,-500.0,0.00052328,120]
[355847741,1741634789442,-500.0,0.00052328,120]
[355847743,1741634789508,-1723.62,0.00052328,120]
[355847745,1741634789576,-500.0,0.00052328,120]
[355847749,1741634789809,-500.0,0.00052328,120]
[355847752,1741634789879,-500.0,0.00052328,120]
[355847754,1741634789947,-625.71,0.00052328,120]
[355847756,1741634790015,-209.72068639,0.00052328,120]
[355847758,1741634790085,-500.0,0.00052328,120]
[355847760,1741634790155,-500.0,0.00052328,120]
[355847762,1741634790223,-500.0,0.00052328,120]
[355847764,1741634790289,-3946.5,0.00052328,120]
[355847765,1741634790354,-500.0,0.00052328,120]
[355847768,1741634790423,-500.0,0.00052328,120]
[355847770,1741634790491,-500.0,0.00052328,120]
[355847772,1741634790566,-1395.15,0.00052328,120]
[355847774,1741634790636,-500.0,0.00052328,120]
[355847776,1741634790702,-500.0,0.00052328,120]
[355847778,1741634790767,-500.0,0.00052328,120]
[355847780,1741634790832,-500.0,0.00052328,120]
[355847782,1741634790898,-500.0,0.00052328,120]
[355847784,1741634790963,-500.0,0.00052328,120]
[355847786,1741634791031,-500.0,0.00052328,120]
[355847788,1741634791097,-501.86,0.00052328,120]
[355847790,1741634791167,-500.0,0.00052328,120]
[355847792,1741634791235,-618.91,0.00052328,120]
[355847794,1741634791304,-696.15,0.00052328,120]
[355847796,1741634791370,-500.0,0.00052328,120]
[355847798,1741634791436,-797.66,0.00052328,120]
[355847800,1741634791505,-2087.8,0.00052328,120]
[355847802,1741634791572,-500.0,0.00052328,120]
[355847804,1741634791638,-508.0,0.00052328,120]
[355847806,1741634791704,-500.0,0.00052328,120]
[355847808,1741634791773,-916.87,0.00052328,120]
[355847810,1741634791841,-5780.6,0.00052328,120]
[355847812,1741634791912,-907.16,0.00052328,120]
[355847814,1741634791979,-313.66649351,0.00052328,120]
[355847816,1741634792047,-964.32,0.00052328,120]
[355847817,1741634792123,-500.0,0.00052328,120]
[355847820,1741634792194,-500.0,0.00052328,120]
[355847822,1741634792261,-2093.35,0.00052328,120]
[355847824,1741634792330,-500.0,0.00052328,120]
[355847826,1741634792396,-500.0,0.00052328,120]
[355847828,1741634792463,-500.0,0.00052328,120]
[355847830,1741634792528,-500.0,0.00052328,120]
[355847832,1741634792594,-943.37,0.00052328,120]
[355847834,1741634792662,-2796.61,0.00052328,120]
[355847836,1741634792728,-500.0,0.00052328,120]
[355847838,1741634792801,-829.49,0.00052328,120]
[355847840,1741634792868,-1140.9,0.00052328,120]
[355847842,1741634792933,-500.0,0.00052328,120]
[355847844,1741634793003,-500.0,0.00052328,120]
[355847846,1741634793080,-500.0,0.00052328,120]
[355847847,1741634793157,-500.0,0.00052328,120]
[355847850,1741634793239,-500.0,0.00052328,120]
[355847852,1741634793321,-500.0,0.00052328,120]
[355847854,1741634793396,-1287.13,0.00052328,120]
[355847856,1741634793476,-580.77,0.00052328,120]
[355847858,1741634793561,-500.0,0.00052328,120]
[355847860,1741634793637,-598.27,0.00052328,120]
[355847862,1741634793705,-517.21,0.00052328,120]
[355847864,1741634793779,-500.0,0.00052328,120]
[355847866,1741634793854,-500.0,0.00052328,120]
[355847868,1741634793928,-500.0,0.00052328,120]
[355847870,1741634794006,-582.99848869,0.00052328,120]
[355847872,1741634794090,-1667.02,0.00052328,120]
[355847874,1741634794168,-1230.06,0.00052328,120]
[355847876,1741634794249,-500.0,0.00052328,120]
[355847878,1741634794324,-685.63,0.00052328,120]
[355847879,1741634794399,-529.86,0.00052328,120]
[355847882,1741634794473,-1714.18,0.00052328,120]
[355847884,1741634794547,-2510.41,0.00052328,120]
[355847886,1741634794621,-500.0,0.00052328,120]
[355847888,1741634794687,-500.0,0.00052328,120]
[355847890,1741634794757,-520.23,0.00052328,120]
[355847892,1741634794827,-500.0,0.00052328,120]
[355847894,1741634794896,-3040.06,0.00052328,120]
[355847896,1741634794967,-562.28,0.00052328,120]
[355847897,1741634795034,-828.78,0.00052328,120]
[355847898,1741634795101,-3111.15,0.00052328,120]
[355847899,1741634795165,-500.0,0.00052328,120]
[355847900,1741634795230,-1558.42,0.00052328,120]
[355847902,1741634795301,-539.56467219,0.00052328,120]
[355847905,1741634795370,-2044.08,0.00052328,120]
[355847907,1741634795441,-500.0,0.00052328,120]
[355847909,1741634795511,-1349.72,0.00052328,120]
[355847910,1741634795580,-500.0,0.00052328,120]
[355847912,1741634795648,-505.0,0.00052328,120]
[355847915,1741634795715,-500.0,0.00052328,120]
[355847919,1741634795945,-500.0,0.00052328,120]
[355847921,1741634796004,-500.0,0.00052328,120]
[355847924,1741634796072,-1531.21,0.00052328,120]
[355847926,1741634796142,-500.0,0.00052328,120]
[355847927,1741634796213,-948.59,0.00052328,120]
[355847930,1741634796283,-634.94,0.00052328,120]
[355847932,1741634796354,-500.0,0.00052328,120]
[355847933,1741634796424,-1529.78,0.00052328,120]
[355847936,1741634796493,-500.0,0.00052328,120]
[355847938,1741634796561,-610.48,0.00052328,120]
[355847939,1741634796629,-500.0,0.00052328,120]
[355847942,1741634796698,-4845.92,0.00052328,120]
[355847944,1741634796768,-637.0,0.00052328,120]
[355847946,1741634796838,-500.0,0.00052328,120]
[355847948,1741634796912,-996.35,0.00052328,120]
[355847949,1741634796990,-2013.49,0.00052328,120]
[355847952,1741634797079,-500.0,0.00052328,120]
[355847954,1741634797155,-932.97,0.00052328,120]
[355847956,1741634797226,-4678.54,0.00052328,120]
[355847958,1741634797297,-500.0,0.00052328,120]
[355847960,1741634797363,-5617.34,0.00052328,120]
[355847962,1741634797433,-500.0,0.00052328,120]
[355847964,1741634797505,-588.13878624,0.00052328,120]
[355847966,1741634797572,-3648.52,0.00052328,120]
[355847968,1741634797648,-760.85,0.00052328,120]
[355847970,1741634797710,-1071.61,0.00052328,120]
[355847972,1741634797785,-500.0,0.00052328,120]
[355847974,1741634797854,-500.0,0.00052328,120]
[355847976,1741634797922,-500.0,0.00052328,120]
[355847978,1741634797989,-500.0,0.00052328,120]
[355847980,1741634798058,-1343.82,0.00052328,120]
[355847982,1741634798130,-1206.47,0.00052328,120]
[355847983,1741634798203,-898.89,0.00052328,120]
[355847986,1741634798275,-3411.55,0.00052328,120]
[355847988,1741634798340,-12509.02,0.00052328,120]
[355847990,1741634798410,-705.81,0.00052328,120]
[355847992,1741634798482,-710.74,0.00052328,120]
[355847993,1741634798555,-500.0,0.00052328,120]
[355847995,1741634798619,-321.41287255,0.00052328,120]
[355847997,1741634798679,-2771.86,0.00052328,120]
[355848000,1741634798743,-550.4,0.00052328,120]
[355848002,1741634798811,-5657.78,0.00052328,120]
[355848004,1741634798878,-500.0,0.00052328,120]
[355848006,1741634798946,-796.29,0.00052328,120]
[355848008,1741634799015,-5551.46,0.00052328,120]